[Event "MČR 2022 blesk"]
[Site "Turnov, Czech Republic"]
[Date "2022.09.10"]
[Round "3.1"]
[White "Stocek, Jiri"]
[Black "Cech, Pavel"]
[Result "1-0"]
[TimeControl "2x 3 min + 2s/move"]
[WhiteElo "2384"]
[BlackElo "2369"]

1. e4 {[%clk 00:03:03]} {[%emt 00:00:06]} Nf6 {[%clk 00:03:03]} 2. e5 {[%clk
00:03:04]} Ne4 {[%clk 00:03:04]} 3. d3 {[%clk 00:03:01]} {[%emt 00:00:05]} Nc5
{[%clk 00:03:05]} 4. d4 {[%clk 00:03:02]} Ne6 {[%clk 00:03:07]} 5. d5 {[%clk
00:03:01]} {[%emt 00:00:04]} Nc5 {[%clk 00:03:08]} 6. Nf3 {[%clk 00:02:54]}
{[%emt 00:00:09]} d6 {[%clk 00:03:05]} {[%emt 00:00:05]} 7. Be3 {[%clk
00:02:50]} {[%emt 00:00:10]} e6 {[%clk 00:02:56]} {[%emt 00:00:08]} 8. Nc3
{[%clk 00:02:48]} {[%emt 00:00:06]} exd5 {[%clk 00:02:44]} {[%emt 00:00:12]} 9.
Bxc5 {[%clk 00:02:27]} {[%emt 00:00:23]} dxc5 {[%clk 00:02:44]} 10. Qxd5 {[%clk
00:02:27]} {[%emt 00:00:09]} Nc6 {[%clk 00:02:22]} {[%emt 00:00:18]} 11. O-O-O
{[%clk 00:02:10]} {[%emt 00:00:20]} Be6 {[%clk 00:02:20]} {[%emt 00:00:07]} 12.
Qe4 {[%clk 00:02:07]} {[%emt 00:00:05]} Qc8 {[%clk 00:01:52]} {[%emt 00:00:31]}
13. Bb5 {[%clk 00:02:05]} Rb8 {[%clk 00:01:18]} {[%emt 00:00:37]} 14. Bxc6+
{[%clk 00:01:33]} {[%emt 00:00:35]} bxc6 {[%clk 00:01:19]} 15. Qxc6+ {[%clk
00:01:33]} {[%emt 00:00:04]} Bd7 {[%clk 00:01:20]} 16. Qe4 {[%clk 00:01:29]}
{[%emt 00:00:05]} Be7 {[%clk 00:01:11]} {[%emt 00:00:09]} 17. Nd5 {[%clk
00:01:17]} {[%emt 00:00:14]} Bd8 {[%clk 00:01:12]} 18. e6 {[%clk 00:00:52]}
{[%emt 00:00:32]} Bxe6 {[%clk 00:01:03]} {[%emt 00:00:11]} 19. Nf4 {[%clk
00:00:49]} {[%emt 00:00:05]} O-O {[%clk 00:00:52]} {[%emt 00:00:09]} 20. Nxe6
{[%clk 00:00:49]} {[%emt 00:00:05]} fxe6 {[%clk 00:00:45]} {[%emt 00:00:14]} 21.
Rhe1 {[%clk 00:00:48]} Bf6 {[%clk 00:00:46]} 22. c3 {[%clk 00:00:39]} {[%emt
00:00:12]} Rb6 {[%clk 00:00:46]} 23. Qc4 {[%clk 00:00:36]} {[%emt 00:00:06]}
Kh8 {[%clk 00:00:20]} {[%emt 00:00:27]} 24. Rd2 {[%clk 00:00:37]} Re8 {[%clk
00:00:15]} {[%emt 00:00:05]} 25. Ne5 {[%clk 00:00:24]} {[%emt 00:00:15]} h6
{[%clk 00:00:13]} {[%emt 00:00:13]} 26. Nd7 {[%clk 00:00:21]} Rd6 {[%clk
00:00:11]} {[%emt 00:00:13]} 27. Nxf6 {[%clk 00:00:18]} gxf6 {[%clk 00:00:13]}
28. Rde2 {[%clk 00:00:16]} Qd7 {[%clk 00:00:12]} {[%emt 00:00:05]} 29. Qxc5
{[%clk 00:00:14]} Rg8 {[%clk 00:00:13]} 30. Qh5 {[%clk 00:00:09]} {[%emt
00:00:12]} Kh7 {[%clk 00:00:14]} 31. g3 {[%clk 00:00:09]} Rg5 {[%clk 00:00:16]}
32. Qf3 {[%clk 00:00:09]} {[%emt 00:00:05]} Rf5 {[%clk 00:00:16]} 33. Qxf5+
{[%clk 00:00:09]} exf5 {[%clk 00:00:16]} {[%emt 00:00:08]} 34. Re7+ {[%clk
00:00:10]} Kg6 {[%clk 00:00:17]} 35. Rxd7 {[%clk 00:00:10]} Rxd7 {[%clk
00:00:19]} 36. Kc2 {[%clk 00:00:11]} f4 {[%clk 00:00:20]} {[%emt 00:00:05]} 37.
Re4 {[%clk 00:00:11]} fxg3 {[%clk 00:00:20]} 38. hxg3 {[%clk 00:00:12]} Kg5
{[%clk 00:00:21]} 39. Ra4 {[%clk 00:00:11]} {[%emt 00:00:05]} c6 {[%clk
00:00:22]} 40. Rc4 {[%clk 00:00:11]} Rd6 {[%clk 00:00:23]} 41. a4 {[%clk
00:00:10]} {[%emt 00:00:04]} f5 {[%clk 00:00:24]} {[%emt 00:00:05]} 42. a5
{[%clk 00:00:10]} Rd5 {[%clk 00:00:25]} 43. b4 {[%clk 00:00:11]} {[%emt
00:00:04]} Re5 {[%clk 00:00:27]} 44. Kd2 {[%clk 00:00:11]} Re6 {[%clk
00:00:28]} 45. Rd4 {[%clk 00:00:09]} {[%emt 00:00:09]} h5 {[%clk 00:00:29]} 46.
Rd7 {[%clk 00:00:09]} a6 {[%clk 00:00:31]} 47. Rg7+ {[%clk 00:00:09]} Kf6
{[%clk 00:00:32]} {[%emt 00:00:05]} 48. Ra7 {[%clk 00:00:09]} c5 {[%clk
00:00:34]} 49. bxc5 {[%emt 00:00:05]} Rc6 50. Kd3 {[%clk 00:00:09]} Ke5 {[%clk
00:00:37]} 51. Kc4 Ke4 {[%clk 00:00:39]} 52. Rh7 {[%clk 00:00:10]} Kf3 {[%clk
00:00:40]} {[%emt 00:00:08]} 53. Rxh5 {[%clk 00:00:10]} Kxf2 {[%clk 00:00:41]}
54. Rxf5+ {[%clk 00:00:11]} Kxg3 {[%clk 00:00:42]} {[%emt 00:00:04]} 55. Kd5
{[%clk 00:00:11]} 1-0

[Event "MČR 2022 blesk"]
[Site "Turnov, Czech Republic"]
[Date "2022.09.10"]
[Round "3.2"]
[White "Sodoma, Jan"]
[Black "Neuman, Petr"]
[Result "0-1"]
[TimeControl "2x 3 min + 2s/move"]
[WhiteElo "2220"]
[BlackElo "2352"]

1. d4 {[%clk 00:03:02]} d5 {[%clk 00:03:03]} 2. Nf3 {[%clk 00:03:02]} Nf6
{[%clk 00:03:04]} 3. c4 {[%clk 00:03:02]} c6 {[%clk 00:03:05]} 4. e3 {[%clk
00:03:02]} {[%emt 00:00:04]} Bf5 {[%clk 00:03:05]} 5. Nc3 {[%clk 00:03:03]} a6
{[%clk 00:03:06]} 6. Nh4 {[%clk 00:02:50]} Bg4 {[%clk 00:03:06]} 7. Qc2 {[%clk
00:02:45]} {[%emt 00:00:05]} e6 {[%clk 00:02:58]} 8. h3 {[%clk 00:02:45]} Bh5
{[%clk 00:02:55]} 9. g4 {[%clk 00:02:46]} Bg6 {[%clk 00:02:51]} 10. Nxg6 {[%clk
00:02:45]} hxg6 {[%clk 00:02:52]} 11. g5 {[%clk 00:02:35]} Nfd7 {[%clk
00:02:34]} 12. f4 {[%clk 00:02:36]} dxc4 {[%clk 00:01:55]} 13. Bxc4 {[%clk
00:02:36]} b5 {[%clk 00:01:55]} 14. Be2 {[%clk 00:02:34]} c5 {[%clk 00:01:52]}
15. Bf3 {[%clk 00:02:15]} Ra7 {[%clk 00:01:53]} 16. d5 {[%clk 00:02:12]} e5
{[%clk 00:01:53]} 17. f5 {[%clk 00:02:02]} Qxg5 {[%clk 00:01:41]} 18. fxg6
{[%clk 00:01:49]} f5 {[%clk 00:01:24]} {[%emt 00:00:13]} 19. Qf2 {[%clk
00:00:40]} {[%emt 00:01:11]} e4 {[%clk 00:01:11]} 20. Bg2 {[%clk 00:00:16]}
{[%emt 00:00:21]} Bd6 {[%clk 00:00:56]} {[%emt 00:00:17]} 21. Kd1 {[%clk
00:00:15]} {[%emt 00:00:05]} Ne5 {[%clk 00:00:44]} {[%emt 00:00:15]} 22. Bd2
{[%clk 00:00:13]} Nbd7 {[%clk 00:00:36]} {[%emt 00:00:11]} 23. Kc2 {[%clk
00:00:13]} Nd3 {[%clk 00:00:35]} {[%emt 00:00:06]} 24. Qe2 {[%clk 00:00:15]}
{[%emt 00:00:05]} N7e5 {[%clk 00:00:32]} 25. a3 {[%clk 00:00:15]} {[%emt
00:00:04]} Nc4 {[%clk 00:00:26]} {[%emt 00:00:08]} 26. Bxe4 {[%clk 00:00:15]}
{[%emt 00:00:22]} Ndxb2 {[%clk 00:00:17]} 27. Bf3 {[%clk 00:00:13]} Qf6 {[%clk
00:00:15]} 28. e4 {[%clk 00:00:14]} Be5 {[%clk 00:00:15]} {[%emt 00:00:35]} 29.
exf5 {[%clk 00:00:14]} Re7 {[%clk 00:00:15]} 30. Qg2 {[%clk 00:00:12]} Nxd2
{[%clk 00:00:15]} 31. Qxd2 {[%clk 00:00:13]} Nc4 {[%clk 00:00:16]} 32. Qd3
{[%clk 00:00:13]} Bxc3 {[%clk 00:00:16]} 33. Qxc3 Qxc3+ {[%clk 00:00:17]} 34.
Kxc3 Re3+ 35. Kc2 {[%clk 00:00:12]} Rxf3 {[%clk 00:00:18]} 36. Rae1+ {[%clk
00:00:13]} Kd7 {[%emt 00:00:09]} 0-1

[Event "MČR 2022 blesk"]
[Site "Turnov, Czech Republic"]
[Date "2022.09.10"]
[Round "3.3"]
[White "Petr, Martin"]
[Black "Sykora, Marek"]
[Result "1-0"]
[TimeControl "2x 3 min + 2s/move"]
[WhiteElo "2446"]
[BlackElo "2084"]

1. e4 {[%clk 00:03:03]} e5 {[%clk 00:03:02]} {[%emt 00:00:11]} 2. f4 {[%clk
00:03:04]} exf4 {[%clk 00:03:01]} 3. Nf3 {[%clk 00:03:05]} h6 {[%clk 00:02:59]}
{[%emt 00:00:09]} 4. Nc3 {[%clk 00:03:04]} d6 {[%clk 00:02:58]} 5. d4 {[%clk
00:03:02]} {[%emt 00:00:06]} g5 {[%clk 00:02:58]} 6. g3 {[%clk 00:03:03]}
{[%emt 00:00:14]} fxg3 {[%clk 00:02:53]} 7. hxg3 {[%clk 00:03:03]} Bg7 {[%clk
00:02:53]} 8. Be3 {[%clk 00:03:03]} {[%emt 00:00:04]} Bg4 {[%clk 00:02:33]}
{[%emt 00:00:17]} 9. Bg2 {[%clk 00:02:44]} {[%emt 00:00:21]} Nc6 {[%clk
00:02:24]} {[%emt 00:00:12]} 10. Qd2 {[%clk 00:02:38]} {[%emt 00:00:12]} Nf6
{[%clk 00:02:11]} {[%emt 00:00:13]} 11. O-O-O {[%clk 00:02:33]} {[%emt
00:00:05]} Qd7 {[%clk 00:01:56]} {[%emt 00:00:17]} 12. e5 {[%clk 00:02:15]}
{[%emt 00:00:19]} dxe5 {[%clk 00:01:54]} {[%emt 00:00:07]} 13. d5 {[%clk
00:02:17]} Bxf3 {[%clk 00:01:37]} {[%emt 00:00:17]} 14. Bxf3 {[%clk 00:02:02]}
{[%emt 00:00:16]} Ne7 {[%clk 00:01:38]} 15. Bc5 {[%clk 00:01:26]} {[%emt
00:00:44]} O-O {[%clk 00:01:02]} {[%emt 00:00:37]} 16. Be3 {[%clk 00:01:02]}
{[%emt 00:00:26]} Nf5 {[%clk 00:00:55]} {[%emt 00:00:09]} 17. Bxg5 {[%clk
00:00:52]} {[%emt 00:00:09]} hxg5 {[%clk 00:00:56]} {[%emt 00:00:09]} 18. Qxg5
{[%clk 00:00:52]} Nh7 {[%clk 00:00:19]} {[%emt 00:00:35]} 19. Qg4 {[%clk
00:00:51]} {[%emt 00:00:04]} Nf6 {[%clk 00:00:16]} {[%emt 00:00:04]} 20. Qg5
{[%clk 00:00:49]} {[%emt 00:00:04]} Rfe8 {[%clk 00:00:10]} {[%emt 00:00:06]} 21.
Ne4 {[%clk 00:00:38]} {[%emt 00:00:13]} Nh7 {[%clk 00:00:07]} {[%emt 00:00:05]}
22. Qg4 {[%clk 00:00:35]} {[%emt 00:00:10]} Rf8 {[%clk 00:00:05]} 23. Rxh7
{[%clk 00:00:31]} {[%emt 00:00:06]} Kxh7 {[%clk 00:00:06]} {[%emt 00:00:04]} 24.
Rh1+ {[%clk 00:00:32]} Bh6+ {[%clk 00:00:06]} 25. Rxh6+ {[%clk 00:00:33]} 1-0

[Event "MČR 2022 blesk"]
[Site "Turnov, Czech Republic"]
[Date "2022.09.10"]
[Round "3.4"]
[White "Marsalek, Zdenek"]
[Black "Klement, Lukas"]
[Result "1-0"]
[TimeControl "2x 3 min + 2s/move"]
[WhiteElo "2203"]
[BlackElo "2256"]

1. d4 {[%clk 00:03:03]} Nf6 {[%clk 00:03:03]} {[%emt 00:00:06]} 2. Nf3 {[%clk
00:03:04]} e6 {[%clk 00:03:04]} {[%emt 00:00:04]} 3. g3 {[%clk 00:03:04]} b5
{[%clk 00:03:04]} 4. e4 {[%clk 00:03:03]} Nxe4 {[%clk 00:02:43]} {[%emt
00:00:24]} 5. Bxb5 {[%clk 00:03:03]} {[%emt 00:00:05]} Bb7 {[%clk 00:02:22]}
{[%emt 00:00:28]} 6. O-O {[%clk 00:03:00]} Be7 {[%clk 00:02:21]} 7. Re1 {[%clk
00:02:56]} {[%emt 00:00:11]} O-O {[%clk 00:02:18]} {[%emt 00:00:04]} 8. Bd3
{[%clk 00:02:53]} {[%emt 00:00:18]} f5 {[%clk 00:02:06]} 9. c4 {[%clk
00:02:49]} {[%emt 00:00:11]} c5 {[%clk 00:01:25]} {[%emt 00:00:35]} 10. Nc3
{[%clk 00:02:35]} {[%emt 00:00:16]} cxd4 {[%clk 00:01:23]} {[%emt 00:00:04]} 11.
Nxe4 {[%clk 00:02:32]} {[%emt 00:00:05]} fxe4 {[%clk 00:01:22]} {[%emt
00:00:06]} 12. Bxe4 {[%clk 00:02:31]} {[%emt 00:00:05]} Bxe4 {[%clk 00:01:21]}
13. Rxe4 {[%clk 00:02:31]} Nc6 {[%clk 00:01:12]} {[%emt 00:00:11]} 14. Nxd4
{[%clk 00:02:23]} {[%emt 00:00:11]} Qb6 {[%clk 00:01:09]} {[%emt 00:00:05]} 15.
Be3 {[%clk 00:02:20]} {[%emt 00:00:07]} Bf6 {[%clk 00:00:55]} {[%emt 00:00:15]}
16. Nxe6 {[%clk 00:02:06]} {[%emt 00:00:16]} Qxb2 {[%clk 00:00:41]} {[%emt
00:00:13]} 17. Rb1 {[%clk 00:02:07]} {[%emt 00:00:09]} Qxa2 18. Nxf8 {[%clk
00:02:05]} {[%emt 00:00:05]} Rxf8 {[%clk 00:00:39]} 19. Qd5+ {[%clk 00:01:42]}
{[%emt 00:00:23]} Kh8 {[%clk 00:00:39]} {[%emt 00:00:07]} 20. Rd1 {[%clk
00:01:42]} Qc2 {[%clk 00:00:06]} {[%emt 00:00:35]} 21. Qd3 {[%clk 00:01:37]}
{[%emt 00:00:06]} Qa4 {[%clk 00:00:06]} {[%emt 00:00:09]} 22. c5 {[%clk
00:01:33]} Qa5 {[%clk 00:00:03]} {[%emt 00:00:05]} 23. Qd5 {[%clk 00:01:25]}
{[%emt 00:00:07]} Qb5 {[%clk 00:00:03]} {[%emt 00:00:12]} 24. Rc1 {[%clk
00:01:18]} {[%emt 00:00:05]} Qe2 {[%clk 00:00:04]} 25. Qd1 {[%clk 00:01:06]}
{[%emt 00:00:10]} Qb5 {[%clk 00:00:05]} 26. Qxd7 {[%clk 00:01:06]} {[%emt
00:00:05]} Qa6 27. Re6 {[%clk 00:01:05]} {[%emt 00:00:14]} Rc8 {[%clk
00:03:02]} 1-0

[Event "MČR 2022 blesk"]
[Site "Turnov, Czech Republic"]
[Date "2022.09.10"]
[Round "3.5"]
[White "Polak, Tomas"]
[Black "Vykouk, Jan"]
[Result "1-0"]
[TimeControl "2x 3 min + 2s/move"]
[WhiteElo "2475"]
[BlackElo "2352"]

1. Nf3 {[%clk 00:03:02]} Nf6 {[%clk 00:03:03]} {[%emt 00:00:07]} 2. c4 {[%clk
00:03:03]} d6 {[%clk 00:03:03]} 3. d4 {[%clk 00:03:02]} {[%emt 00:00:04]} g6
{[%clk 00:03:03]} 4. Nc3 {[%clk 00:03:03]} Bg7 {[%clk 00:03:04]} {[%emt
00:00:04]} 5. e4 {[%clk 00:03:04]} O-O {[%clk 00:03:04]} {[%emt 00:00:13]} 6.
Be2 {[%clk 00:03:05]} Nbd7 {[%clk 00:03:05]} 7. O-O {[%clk 00:03:04]} e5 {[%clk
00:03:06]} 8. Re1 {[%clk 00:03:05]} Re8 {[%clk 00:03:07]} {[%emt 00:00:08]} 9.
Bf1 {[%clk 00:03:04]} b6 {[%clk 00:03:07]} 10. d5 {[%clk 00:02:52]} {[%emt
00:00:06]} a5 {[%clk 00:03:08]} 11. Rb1 {[%clk 00:02:47]} {[%emt 00:00:15]} Nc5
{[%clk 00:03:08]} 12. b3 {[%clk 00:02:46]} Nh5 {[%clk 00:03:00]} {[%emt
00:00:07]} 13. a3 {[%clk 00:02:40]} {[%emt 00:00:07]} Bf8 {[%clk 00:03:00]}
{[%emt 00:00:06]} 14. b4 {[%clk 00:02:38]} {[%emt 00:00:05]} Nb7 {[%clk
00:03:00]} 15. g3 {[%clk 00:02:32]} {[%emt 00:00:13]} Ng7 {[%clk 00:03:00]} 16.
Nb5 {[%clk 00:02:24]} {[%emt 00:00:05]} Bd7 {[%clk 00:02:47]} {[%emt 00:00:15]}
17. Qc2 {[%clk 00:02:16]} {[%emt 00:00:10]} Be7 {[%clk 00:02:14]} {[%emt
00:00:35]} 18. Be3 {[%clk 00:02:09]} {[%emt 00:00:08]} f5 {[%clk 00:02:13]}
{[%emt 00:00:05]} 19. Bg2 {[%clk 00:02:00]} {[%emt 00:00:10]} fxe4 {[%clk
00:02:01]} {[%emt 00:00:14]} 20. Nd2 {[%clk 00:02:01]} Nf5 {[%clk 00:02:01]}
{[%emt 00:00:06]} 21. Nxe4 {[%clk 00:02:00]} {[%emt 00:00:08]} Nxe3 {[%clk
00:02:00]} 22. Rxe3 {[%clk 00:01:59]} Rf8 {[%clk 00:01:50]} {[%emt 00:00:18]}
23. Rf1 {[%clk 00:01:55]} {[%emt 00:00:05]} Qc8 {[%clk 00:01:12]} {[%emt
00:00:36]} 24. Qe2 {[%clk 00:01:44]} {[%emt 00:00:10]} c6 {[%clk 00:01:06]}
{[%emt 00:00:13]} 25. dxc6 {[%clk 00:01:41]} Bxc6 {[%clk 00:01:06]} {[%emt
00:00:05]} 26. Nbc3 {[%clk 00:01:40]} {[%emt 00:00:05]} axb4 27. axb4 {[%clk
00:01:41]} Nd8 {[%clk 00:00:57]} {[%emt 00:00:13]} 28. Nd5 {[%clk 00:01:39]}
Qb7 {[%clk 00:00:34]} {[%emt 00:00:25]} 29. Qg4 {[%clk 00:01:30]} {[%emt
00:00:10]} Rf7 {[%clk 00:00:18]} {[%emt 00:00:18]} 30. Rd1 {[%clk 00:01:27]}
{[%emt 00:00:06]} Bxd5 {[%clk 00:00:12]} {[%emt 00:00:07]} 31. cxd5 {[%clk
00:01:25]} {[%emt 00:00:07]} Qc8 {[%clk 00:00:07]} {[%emt 00:00:09]} 32. Qe2
{[%clk 00:01:21]} {[%emt 00:00:05]} Bf8 {[%clk 00:00:05]} {[%emt 00:00:22]} 33.
h4 {[%clk 00:01:20]} Rc7 {[%clk 00:00:04]} 34. h5 {[%clk 00:01:17]} Rc1 {[%clk
00:00:04]} 35. Kh2 {[%clk 00:01:13]} {[%emt 00:00:30]} Raa1 {[%clk 00:00:05]}
36. Rxc1 {[%clk 00:01:08]} Rxc1 {[%clk 00:00:06]} 37. Bh3 {[%clk 00:01:05]} Qc2
{[%clk 00:00:06]} 38. Qg4 {[%clk 00:01:02]} Qc7 {[%clk 00:00:04]} {[%emt
00:00:12]} 39. hxg6 {[%clk 00:01:02]} h6 {[%clk 00:00:03]} 40. Nf6+ {[%clk
00:01:01]} {[%emt 00:00:36]} Kh8 {[%clk 00:00:04]} 41. Rf3 {[%clk 00:00:59]}
Bg7 {[%clk 00:00:03]} 42. Nh5 {[%clk 00:00:57]} Rc2 {[%clk 00:00:03]} 43. Qh4
{[%clk 00:00:54]} Rd2 1-0

[Event "MČR 2022 blesk"]
[Site "Turnov, Czech Republic"]
[Date "2022.09.10"]
[Round "3.6"]
[White "Kraus, Tomas"]
[Black "Roubalik, Jakub"]
[Result "1/2-1/2"]
[TimeControl "2x 3 min + 2s/move"]
[WhiteElo "2389"]
[BlackElo "2276"]

1. d4 {[%clk 00:03:04]} d5 {[%clk 00:03:03]} {[%emt 00:00:10]} 2. c4 {[%clk
00:02:59]} {[%emt 00:00:05]} e6 {[%clk 00:03:03]} 3. Nc3 {[%clk 00:02:46]}
{[%emt 00:00:12]} Be7 {[%clk 00:03:04]} 4. cxd5 {[%clk 00:02:31]} {[%emt
00:00:17]} exd5 {[%clk 00:03:05]} {[%emt 00:00:10]} 5. Bf4 {[%clk 00:02:29]} c6
{[%clk 00:03:05]} 6. e3 {[%clk 00:02:29]} Bf5 {[%clk 00:03:04]} {[%emt
00:00:05]} 7. Bd3 {[%clk 00:02:08]} {[%emt 00:00:21]} Bxd3 {[%clk 00:03:02]}
{[%emt 00:00:09]} 8. Qxd3 {[%clk 00:02:08]} Nf6 {[%clk 00:03:00]} {[%emt
00:00:05]} 9. Nf3 {[%clk 00:01:56]} {[%emt 00:00:10]} Nbd7 {[%clk 00:02:58]}
{[%emt 00:00:04]} 10. h3 {[%clk 00:01:54]} {[%emt 00:00:06]} Nf8 {[%clk
00:02:41]} {[%emt 00:00:17]} 11. O-O {[%clk 00:01:51]} {[%emt 00:00:10]} Ng6
{[%clk 00:02:32]} {[%emt 00:00:06]} 12. Bh2 {[%clk 00:01:49]} {[%emt 00:00:05]}
O-O {[%clk 00:02:31]} {[%emt 00:00:05]} 13. Rab1 {[%clk 00:01:40]} {[%emt
00:00:08]} Re8 {[%clk 00:02:30]} {[%emt 00:00:06]} 14. b4 {[%clk 00:01:32]}
{[%emt 00:00:07]} a6 {[%clk 00:02:31]} 15. a4 {[%clk 00:01:32]} {[%emt
00:00:05]} Bd6 {[%clk 00:02:32]} 16. Bxd6 {[%clk 00:01:21]} {[%emt 00:00:16]}
Qxd6 {[%clk 00:02:33]} 17. Nd2 {[%clk 00:01:12]} {[%emt 00:00:13]} Qe6 {[%clk
00:02:07]} {[%emt 00:00:23]} 18. b5 {[%clk 00:01:04]} {[%emt 00:00:10]} axb5
{[%clk 00:02:08]} 19. axb5 {[%clk 00:01:05]} {[%emt 00:00:06]} Ra3 {[%clk
00:02:00]} {[%emt 00:00:06]} 20. Rb3 {[%clk 00:00:58]} {[%emt 00:00:09]} Rxb3
{[%clk 00:01:47]} {[%emt 00:00:16]} 21. Nxb3 {[%clk 00:00:59]} Ne4 {[%clk
00:01:47]} {[%emt 00:00:05]} 22. bxc6 {[%clk 00:00:52]} {[%emt 00:00:06]} bxc6
{[%clk 00:01:46]} {[%emt 00:00:06]} 23. Nxe4 {[%clk 00:00:50]} {[%emt
00:00:05]} dxe4 {[%clk 00:01:46]} 24. Qc2 {[%clk 00:00:42]} {[%emt 00:00:07]}
Nh4 {[%clk 00:01:45]} {[%emt 00:00:05]} 25. Rc1 {[%clk 00:00:22]} {[%emt
00:00:21]} Qg6 {[%clk 00:01:28]} {[%emt 00:00:19]} 26. g3 {[%clk 00:00:23]}
Nf3+ {[%clk 00:01:28]} {[%emt 00:00:10]} 27. Kg2 {[%clk 00:00:23]} Nh4+ {[%clk
00:01:22]} {[%emt 00:00:04]} 28. Kh2 {[%clk 00:00:16]} {[%emt 00:00:10]} Nf3+
{[%clk 00:01:21]} {[%emt 00:00:05]} 29. Kg2 {[%clk 00:00:17]} Nh4+ {[%clk
00:00:58]} {[%emt 00:00:22]} 30. Kh2 {[%clk 00:00:18]} Nf3+ {[%clk 00:00:59]}
1/2-1/2

[Event "MČR 2022 blesk"]
[Site "Turnov, Czech Republic"]
[Date "2022.09.10"]
[Round "3.7"]
[White "Nemec, Jachym"]
[Black "Finek, Vaclav"]
[Result "1-0"]
[TimeControl "2x 3 min + 2s/move"]
[WhiteElo "2130"]
[BlackElo "2101"]

1. c4 {[%clk 00:03:03]} e5 {[%clk 00:03:01]} {[%emt 00:00:04]} 2. Nc3 {[%clk
00:03:04]} Nf6 {[%clk 00:03:00]} {[%emt 00:00:04]} 3. Nf3 {[%clk 00:03:04]} Nc6
{[%clk 00:03:00]} {[%emt 00:00:04]} 4. e4 {[%clk 00:03:05]} Bc5 {[%clk
00:02:58]} 5. Nxe5 {[%clk 00:03:05]} {[%emt 00:00:05]} Nxe5 {[%clk 00:02:54]}
{[%emt 00:00:09]} 6. d4 {[%clk 00:03:06]} Bxd4 {[%clk 00:02:20]} {[%emt
00:00:42]} 7. Qxd4 {[%clk 00:03:06]} d6 {[%clk 00:02:22]} 8. Be2 {[%clk
00:02:57]} {[%emt 00:00:07]} O-O {[%clk 00:02:21]} {[%emt 00:00:04]} 9. Bg5
{[%clk 00:02:57]} h6 {[%clk 00:02:11]} {[%emt 00:00:09]} 10. Bh4 {[%clk
00:02:58]} Be6 {[%clk 00:02:01]} {[%emt 00:00:18]} 11. O-O {[%clk 00:02:52]}
{[%emt 00:00:06]} c5 {[%clk 00:01:53]} {[%emt 00:00:07]} 12. Qd1 {[%clk
00:02:35]} {[%emt 00:00:19]} Nxc4 {[%clk 00:01:43]} {[%emt 00:00:11]} 13. b3
{[%clk 00:02:11]} {[%emt 00:00:27]} Ne5 {[%clk 00:01:37]} {[%emt 00:00:08]} 14.
f4 {[%clk 00:02:08]} {[%emt 00:00:09]} Ng6 {[%clk 00:01:13]} {[%emt 00:00:25]}
15. Bg3 {[%clk 00:02:08]} {[%emt 00:00:04]} d5 {[%clk 00:00:58]} {[%emt
00:00:12]} 16. f5 {[%clk 00:02:05]} {[%emt 00:00:10]} d4 {[%clk 00:00:59]} 17.
Na4 {[%clk 00:01:34]} {[%emt 00:00:48]} Nxe4 {[%clk 00:00:52]} 1-0

[Event "MČR 2022 blesk"]
[Site "Turnov, Czech Republic"]
[Date "2022.09.10"]
[Round "3.8"]
[White "Simacek, Pavel"]
[Black "Pisk, Petr"]
[Result "0-1"]
[TimeControl "2x 3 min + 2s/move"]
[WhiteElo "2365"]
[BlackElo "2312"]

1. e4 {[%clk 00:03:02]} c5 {[%clk 00:03:01]} {[%emt 00:00:05]} 2. Nf3 {[%clk
00:03:02]} {[%emt 00:00:05]} Nc6 {[%clk 00:03:01]} 3. Nc3 {[%clk 00:02:57]}
{[%emt 00:00:06]} d6 {[%clk 00:02:53]} {[%emt 00:00:08]} 4. Bb5 {[%clk
00:02:38]} {[%emt 00:00:20]} Bd7 {[%clk 00:02:52]} {[%emt 00:00:06]} 5. O-O
{[%clk 00:02:37]} {[%emt 00:00:05]} e6 {[%clk 00:02:45]} {[%emt 00:00:06]} 6.
d4 {[%clk 00:02:22]} {[%emt 00:00:14]} cxd4 {[%clk 00:02:45]} {[%emt 00:00:15]}
7. Nxd4 {[%clk 00:02:22]} Nf6 {[%clk 00:02:45]} 8. Be3 {[%clk 00:02:06]} {[%emt
00:00:10]} Be7 {[%clk 00:02:44]} {[%emt 00:00:14]} 9. Re1 {[%clk 00:01:52]}
{[%emt 00:00:06]} O-O {[%clk 00:02:44]} 10. h3 {[%clk 00:01:52]} {[%emt
00:00:04]} a6 {[%clk 00:02:21]} {[%emt 00:00:28]} 11. Nxc6 {[%clk 00:01:37]}
{[%emt 00:00:13]} Bxc6 {[%clk 00:02:09]} {[%emt 00:00:13]} 12. Bxc6 {[%clk
00:01:37]} {[%emt 00:00:06]} bxc6 {[%clk 00:02:10]} 13. Qd3 {[%clk 00:01:37]}
{[%emt 00:00:05]} d5 {[%clk 00:02:04]} {[%emt 00:00:05]} 14. Rad1 {[%clk
00:01:33]} {[%emt 00:00:11]} dxe4 {[%clk 00:01:19]} {[%emt 00:04:45]} 15. Qc4
{[%clk 00:01:12]} Qa5 {[%clk 00:01:06]} 16. a3 {[%clk 00:01:05]} Rab8 {[%clk
00:00:55]} 17. Bc1 {[%clk 00:00:57]} h6 {[%clk 00:00:29]} 18. Nxe4 {[%clk
00:00:55]} Nxe4 {[%clk 00:00:29]} 19. Qxe4 {[%clk 00:00:55]} Bf6 {[%clk
00:00:28]} 20. c3 {[%clk 00:00:52]} Qb5 {[%clk 00:00:23]} 21. Rd6 {[%clk
00:00:49]} c5 {[%clk 00:00:21]} 22. Red1 {[%clk 00:00:45]} Rbc8 {[%clk
00:00:18]} 23. a4 {[%clk 00:00:42]} Qb3 0-1